{"text_format":"3","workbook":"xlsx","n_sheets":3,"sheets":["宣广","宣泾","溧广"],"not_rendered":{"images":14,"defined_names":1},"read":"whole","date_system":"1900"}

{"sheet":"宣广","index":0,"n_rows":16,"n_cols":13,"rows_kept":16,"merged":[[0,0,0,12],[15,0,15,9],[16,0,16,12]]}
["宣广公司2024年厨具采购清单"]
["序号","名称","规格型号","技术参数","十字","洪林","广德东","数量","单位","单价","金额合计","品牌","备注"]
[1,"组合灶台柜","14850*700*800\n14850*700*800\n13600*700*800\n14500*700*800\n","说明：采用不锈钢板制作；\n1、柜体、台面：1.0mm不锈钢板；\n2、侧板采用：1.0mm不锈钢板；\n3、管脚采用1.0mm*38不锈钢圆管；\n4、横档采用1.0mm*25不锈钢圆管；\n5、调节脚采用金属外包不锈钢子弹脚。\n6、产品焊接部位应牢固，焊纹均匀一致，不允许有未焊透、裂纹等缺陷，外露焊缝均应进行抛光或去 色处理；\n7、产品各连接部位的紧固件应位置均匀，连接牢固；\n8、产品与人体接触部位不允许有尖角和毛刺；",14.85,14.85,13.6,{"$f":"G3+F3+E3","v":43.3},"米",null,{"$f":"J3*H3","v":0},"格瑞特"]
[2,"电磁炒灶","500*580*300mm","1、功率 8KW/380v\n2、尺寸：500*580*300mm\n3、钢板材质与厚度：201，1.0mm\n4、显示屏带有中文故障原因，方便维修处理。\n5、实时显示当前输出功率，方便火候掌控。\n",0,2,0,{"$f":"G4+F4+E4","v":2},"组",null,0,"摩力斯"]
[3,"油烟机","1.6m","功率：1.5KW/380V\n1、外壳及电场材质均采用优质不锈钢板材制作。\n2、数字显示各项运行指标，包括：输出风量、温度、故障代码、运行状态，同时配备LED显示。\n3、为方便清洗，电场采用大间距不锈钢板式结构，极板间距≥22mm。\n4、一级净化为不锈钢蜂窝细密过滤网板，二级净化为静电式油烟净化器。达到低空排放标准。\n5、智能模式电源能够根据电场洁净度自动调节运行电流，当电场洁净度下降时，运行电流相应调小，达到延长清洗周期的目的，高效模式在设备运行期间运行电流保持不变，保证高效净化；具有清洗提示功能，能根据电场的脏洁度作出清洗提示并在屏幕中显示，有故障显示功能，故障代码通过屏幕进行显示。",0,1,0,1,"组",null,0,"绿洁",{"$f":"SUM(E5:G5)","v":1}]
[4,"冰箱","全钢全铜管四门","1、全不锈钢箱体，经久耐用，美观大方；\n2、冷凝器为铜管铝翅片；优质铜芯风扇电机；厚壁纯紫铜铜管蒸发器；\n3、数字温控显示器；箱体采用聚氨酯高压整体发泡；不锈钢搁物架，分层设计，高度可自由调节，坚韧耐用； 优质拉伸内胆； \n4、冷藏温度：0℃~6℃，冷冻温度：可调-15℃；\n5、额定电压：220V；额定输入功率：376W；                                             \n6、采用国内一线品牌压缩机，特长盘管，制冷效果好，耗电量低；聚氨脂材料整体发泡，降低能耗，保温效果好；\n7、双温控设计，冷冻冷藏同时进行，大容量储存空间，性价比高；                                   \n",0,1,1,2,"台",null,0,"冰厨"]
[5,"冰柜","228L","1、温度: -15℃-0℃；\n2、容积：228L；\n3、制冷方式：直冷，功率：230W/220V\n4、R290制冷剂，效率远高于传统制冷剂，且对臭氧层无破坏，温室效应值极低；\n",1,1,1,3,"台",null,0,"星星"]
[6,"消毒柜","双门全钢\n可视热风循环","1、电压：220V；\n2、功率：2kW；\n3、箱体采用不锈钢材料制作。消毒碗篮采用不锈钢材料制作；加热方式采用电热管配合耐高温电机，使产生的热量转换成热风循环杀菌消毒。\n4、控制系统采用定时控器。框内温度均匀无死角，",1,1,1,3,"台",null,0,"众康"]
[7,"高温消毒柜","32格","型号：32格\n功率：3.6KW/220V\n1、产品采用优质不锈钢独立格子箱体保温发泡层工艺打造。\n2、高温消毒，高温智能显示器，带有调温调试时功能。",0,1,0,1,"台",null,0,"美佳"]
[8,"水池柜","1500*650*800","说明：采用不锈钢板制作；\n1、柜体、台面：1.0mm不锈钢板；\n2、星盆斗采用：1.0mm不锈钢板；\n3、管脚采用1.0mm*38不锈钢圆管；\n4、横档采用1.0mm*25不锈钢圆管；\n5、调节脚采用金属外包不锈钢子弹脚。\n6、产品焊接部位应牢固，焊纹均匀一致，不允许有未焊透、裂纹等缺陷，外露焊缝均应进行抛光或去 色处理；\n7、产品各连接部位的紧固件应位置均匀，连接牢固；\n8、产品与人体接触部位不允许有尖角和毛刺；",1,1,1,3,"组",null,0,"格瑞特"]
[9,"货架","四层\n1200*500*1550\n","1、采用优质不锈钢板制作；\n2、层板采用：1.0mm不锈钢板；\n3、管脚采用φ38*1.0mm不锈钢圆管；\n4、层板加装U字形加强筋做支撑；\n",4,4,2,10,"组",null,0,"格瑞特"]
[10,"压力锅","13L","容量：13L\n功率：1.6KW/220V\n1、360度立体加热，升温快，热能均匀，有效提升食物新鲜度。\n2、采用商用加厚发热盘，加宽加厚发热盘受热更均匀，导热快，不夹生，快速煮出食物，省时省电。\n3、七重保护装置限温保护，防堵保护，超温保护，泄压保护，限压保护开合锅盖儿保护，压力保护。",1,1,1,3,"个",null,0,"质鼎"]
[11,"电饭锅","10L","容量：10L\n功率：1.6KW/220V\n1、精工打造，采用蜂窝黑晶内胆，加厚防烫把手，可视化顶盖，人性化提手，可放饭勺、锅盖。\n2、采用加厚发热盘，受热更均匀导热更快，不加生快速快速煮出喷香的米饭，不仅省时，还省力。\n3、严苛选材，经久耐用，不脱落，升级版加厚，不变形不粘锅。\n\n",1,1,1,3,"个",null,0,"质鼎"]
[12,"厨杂用品","打包一整套","每套包含后厨加工用炒锅、炒勺、锅铲、保鲜盒、调料缸、洗菜篮子、蒸饭用不锈钢托盘等后厨厨杂用品。\n",1,1,1,3,"套",null,0,"汇星"]
[13,"包厢餐具","打包一整套","每套包含摆台餐具碗碟勺筷架水杯茶杯等20套，包含盘子砂锅等菜品容器器具。\n",1,1,1,3,"套",null,0,"道顿"]
["合计",{"$nulls":9},{"$f":"SUM(K3:K15)","v":0}]

{"sheet":"宣泾","index":1,"n_rows":16,"n_cols":13,"rows_kept":16,"merged":[[0,0,0,12],[15,0,15,9],[16,0,16,12]]}
["宣泾公司2024年厨具采购清单"]
["序号","名称","规格型号","技术参数","宣城南","杨柳","泾县东","数量","单位","单价","金额合计","品牌","备注"]
[1,"组合灶台柜","14070*700*800\n14090*700*800\n13420*700*800\n\n","说明：采用不锈钢板制作；\n1、柜体、台面：1.0mm不锈钢板；\n2、侧板采用：1.0mm不锈钢板；\n3、管脚采用1.0mm*38不锈钢圆管；\n4、横档采用1.0mm*25不锈钢圆管；\n5、调节脚采用金属外包不锈钢子弹脚。\n6、产品焊接部位应牢固，焊纹均匀一致，不允许有未焊透、裂纹等缺陷，外露焊缝均应进行抛光或去 色处理；\n7、产品各连接部位的紧固件应位置均匀，连接牢固；\n8、产品与人体接触部位不允许有尖角和毛刺；",14.07,14.09,13.42,{"$f":"SUM(E3:G3)","v":41.58},"米",null,{"$f":"H3*J3","v":0},"格瑞特"]
[2,"电磁炒灶","500*580*300mm","1、功率 8KW/380v\n2、尺寸：500*580*300mm\n3、钢板材质与厚度：201，1.0mm\n4、显示屏带有中文故障原因，方便维修处理。\n5、实时显示当前输出功率，方便火候掌控。\n",2,2,2,6,"组",null,0,"摩力斯"]
[3,"油烟机","1.6m","功率：1.5KW/380V\n1、外壳及电场材质均采用优质不锈钢板材制作。\n2、数字显示各项运行指标，包括：输出风量、温度、故障代码、运行状态，同时配备LED显示。\n3、为方便清洗，电场采用大间距不锈钢板式结构，极板间距≥22mm。\n4、一级净化为不锈钢蜂窝细密过滤网板，二级净化为静电式油烟净化器。达到低空排放标准。\n5、智能模式电源能够根据电场洁净度自动调节运行电流，当电场洁净度下降时，运行电流相应调小，达到延长清洗周期的目的，高效模式在设备运行期间运行电流保持不变，保证高效净化；具有清洗提示功能，能根据电场的脏洁度作出清洗提示并在屏幕中显示，有故障显示功能，故障代码通过屏幕进行显示。",1,1,1,3,"组",null,0,"绿洁"]
[4,"冰箱","全钢全铜管四门","1、全不锈钢箱体，经久耐用，美观大方；\n2、冷凝器为铜管铝翅片；优质铜芯风扇电机；厚壁纯紫铜铜管蒸发器；\n3、数字温控显示器；箱体采用聚氨酯高压整体发泡；不锈钢搁物架，分层设计，高度可自由调节，坚韧耐用； 优质拉伸内胆； \n4、冷藏温度：0℃~6℃，冷冻温度：可调-15℃；\n5、额定电压：220V；额定输入功率：376W；                                             \n6、采用国内一线品牌压缩机，特长盘管，制冷效果好，耗电量低；聚氨脂材料整体发泡，降低能耗，保温效果好；\n7、双温控设计，冷冻冷藏同时进行，大容量储存空间，性价比高；                                   \n",1,1,1,3,"台",null,0,"冰厨"]
[5,"冰柜","228L","1、温度: -15℃-0℃；\n2、容积：228L；\n3、制冷方式：直冷，功率：230W/220V\n4、R290制冷剂，效率远高于传统制冷剂，且对臭氧层无破坏，温室效应值极低；\n",1,1,1,3,"台",null,0,"星星"]
[6,"消毒柜","双门全钢\n可视热风循环","1、电压：220V；\n2、功率：2kW；\n3、箱体采用不锈钢材料制作。消毒碗篮采用不锈钢材料制作；加热方式采用电热管配合耐高温电机，使产生的热量转换成热风循环杀菌消毒。\n4、控制系统采用定时控器。框内温度均匀无死角，",1,1,1,3,"台",null,0,"众康"]
[7,"高温消毒柜","32格","型号：32格\n功率：3.6KW/220V\n1、产品采用优质不锈钢独立格子箱体保温发泡层工艺打造。\n2、高温消毒，高温智能显示器，带有调温调试时功能。",1,1,1,3,"台",null,0,"美佳"]
[8,"水池柜","1500*650*800","说明：采用不锈钢板制作；\n1、柜体、台面：1.0mm不锈钢板；\n2、星盆斗采用：1.0mm不锈钢板；\n3、管脚采用1.0mm*38不锈钢圆管；\n4、横档采用1.0mm*25不锈钢圆管；\n5、调节脚采用金属外包不锈钢子弹脚。\n6、产品焊接部位应牢固，焊纹均匀一致，不允许有未焊透、裂纹等缺陷，外露焊缝均应进行抛光或去 色处理；\n7、产品各连接部位的紧固件应位置均匀，连接牢固；\n8、产品与人体接触部位不允许有尖角和毛刺；",1,1,1,3,"组",null,0,"格瑞特"]
[9,"货架","四层\n1200*500*1550\n","1、采用优质不锈钢板制作；\n2、层板采用：1.0mm不锈钢板；\n3、管脚采用φ38*1.0mm不锈钢圆管；\n4、层板加装U字形加强筋做支撑；\n",5,5,5,15,"组",null,0,"格瑞特"]
[10,"压力锅","13L","容量：13L\n功率：1.6KW/220V\n1、360度立体加热，升温快，热能均匀，有效提升食物新鲜度。\n2、采用商用加厚发热盘，加宽加厚发热盘受热更均匀，导热快，不夹生，快速煮出食物，省时省电。\n3、七重保护装置限温保护，防堵保护，超温保护，泄压保护，限压保护开合锅盖儿保护，压力保护。",1,1,1,3,"个",null,0,"质鼎"]
[11,"电饭锅","10L","容量：10L\n功率：1.6KW/220V\n1、精工打造，采用蜂窝黑晶内胆，加厚防烫把手，可视化顶盖，人性化提手，可放饭勺、锅盖。\n2、采用加厚发热盘，受热更均匀导热更快，不加生快速快速煮出喷香的米饭，不仅省时，还省力。\n3、严苛选材，经久耐用，不脱落，升级版加厚，不变形不粘锅。\n\n",1,1,1,3,"个",null,0,"质鼎"]
[12,"厨杂用品","打包一整套","每套包含后厨加工用炒锅、炒勺、锅铲、保鲜盒、调料缸、洗菜篮子、蒸饭用不锈钢托盘等后厨厨杂用品。\n",1,1,1,3,"套",null,0,"汇星"]
[13,"包厢餐具","打包一整套","每套包含摆台餐具碗碟勺筷架水杯茶杯等20套，包含盘子砂锅等菜品容器器具。\n",1,1,1,3,"套",null,0,"道顿"]
["合计",{"$nulls":9},{"$f":"SUM(K3:K15)","v":0}]

{"sheet":"溧广","index":2,"n_rows":16,"n_cols":11,"rows_kept":16,"merged":[[0,0,0,10],[15,0,15,7],[16,0,16,10]]}
["溧广公司2024年厨具采购清单"]
["序号","名称","规格型号","技术参数","郎溪北","数量","单位","单价","金额合计","品牌","备注"]
[1,"组合灶台柜","14850*700*800\n14850*700*800\n13600*700*800\n14500*700*800\n","说明：采用不锈钢板制作；\n1、柜体、台面：1.0mm不锈钢板；\n2、侧板采用：1.0mm不锈钢板；\n3、管脚采用1.0mm*38不锈钢圆管；\n4、横档采用1.0mm*25不锈钢圆管；\n5、调节脚采用金属外包不锈钢子弹脚。\n6、产品焊接部位应牢固，焊纹均匀一致，不允许有未焊透、裂纹等缺陷，外露焊缝均应进行抛光或去 色处理；\n7、产品各连接部位的紧固件应位置均匀，连接牢固；\n8、产品与人体接触部位不允许有尖角和毛刺；",14.5,{"$f":"E3","v":14.5},"米",null,{"$f":"H3*F3","v":0},"格瑞特"]
[2,"电磁炒灶","500*580*300mm","1、功率 8KW/380v\n2、尺寸：500*580*300mm\n3、钢板材质与厚度：201，1.0mm\n4、显示屏带有中文故障原因，方便维修处理。\n5、实时显示当前输出功率，方便火候掌控。\n",2,{"$f":"E4","v":2},"组",null,0,"摩力斯"]
[3,"油烟机","1.6m","功率：1.5KW/380V\n1、外壳及电场材质均采用优质不锈钢板材制作。\n2、数字显示各项运行指标，包括：输出风量、温度、故障代码、运行状态，同时配备LED显示。\n3、为方便清洗，电场采用大间距不锈钢板式结构，极板间距≥22mm。\n4、一级净化为不锈钢蜂窝细密过滤网板，二级净化为静电式油烟净化器。达到低空排放标准。\n5、智能模式电源能够根据电场洁净度自动调节运行电流，当电场洁净度下降时，运行电流相应调小，达到延长清洗周期的目的，高效模式在设备运行期间运行电流保持不变，保证高效净化；具有清洗提示功能，能根据电场的脏洁度作出清洗提示并在屏幕中显示，有故障显示功能，故障代码通过屏幕进行显示。",1,1,"组",null,0,"绿洁",{"$f":"SUM(E5:E5)","v":1}]
[4,"冰箱","全钢全铜管四门","1、全不锈钢箱体，经久耐用，美观大方；\n2、冷凝器为铜管铝翅片；优质铜芯风扇电机；厚壁纯紫铜铜管蒸发器；\n3、数字温控显示器；箱体采用聚氨酯高压整体发泡；不锈钢搁物架，分层设计，高度可自由调节，坚韧耐用； 优质拉伸内胆； \n4、冷藏温度：0℃~6℃，冷冻温度：可调-15℃；\n5、额定电压：220V；额定输入功率：376W；                                             \n6、采用国内一线品牌压缩机，特长盘管，制冷效果好，耗电量低；聚氨脂材料整体发泡，降低能耗，保温效果好；\n7、双温控设计，冷冻冷藏同时进行，大容量储存空间，性价比高；                                   \n",1,1,"台",null,0,"冰厨"]
[5,"冰柜","228L","1、温度: -15℃-0℃；\n2、容积：228L；\n3、制冷方式：直冷，功率：230W/220V\n4、R290制冷剂，效率远高于传统制冷剂，且对臭氧层无破坏，温室效应值极低；\n",1,1,"台",null,0,"星星"]
[6,"消毒柜","双门全钢\n可视热风循环","1、电压：220V；\n2、功率：2kW；\n3、箱体采用不锈钢材料制作。消毒碗篮采用不锈钢材料制作；加热方式采用电热管配合耐高温电机，使产生的热量转换成热风循环杀菌消毒。\n4、控制系统采用定时控器。框内温度均匀无死角，",1,1,"台",null,0,"众康"]
[7,"高温消毒柜","32格","型号：32格\n功率：3.6KW/220V\n1、产品采用优质不锈钢独立格子箱体保温发泡层工艺打造。\n2、高温消毒，高温智能显示器，带有调温调试时功能。",1,1,"台",null,0,"美佳"]
[8,"水池柜","1500*650*800","说明：采用不锈钢板制作；\n1、柜体、台面：1.0mm不锈钢板；\n2、星盆斗采用：1.0mm不锈钢板；\n3、管脚采用1.0mm*38不锈钢圆管；\n4、横档采用1.0mm*25不锈钢圆管；\n5、调节脚采用金属外包不锈钢子弹脚。\n6、产品焊接部位应牢固，焊纹均匀一致，不允许有未焊透、裂纹等缺陷，外露焊缝均应进行抛光或去 色处理；\n7、产品各连接部位的紧固件应位置均匀，连接牢固；\n8、产品与人体接触部位不允许有尖角和毛刺；",1,1,"组",null,0,"格瑞特"]
[9,"货架","四层\n1200*500*1550\n","1、采用优质不锈钢板制作；\n2、层板采用：1.0mm不锈钢板；\n3、管脚采用φ38*1.0mm不锈钢圆管；\n4、层板加装U字形加强筋做支撑；\n",5,5,"组",null,0,"格瑞特"]
[10,"压力锅","13L","容量：13L\n功率：1.6KW/220V\n1、360度立体加热，升温快，热能均匀，有效提升食物新鲜度。\n2、采用商用加厚发热盘，加宽加厚发热盘受热更均匀，导热快，不夹生，快速煮出食物，省时省电。\n3、七重保护装置限温保护，防堵保护，超温保护，泄压保护，限压保护开合锅盖儿保护，压力保护。",1,1,"个",null,0,"质鼎"]
[11,"电饭锅","10L","容量：10L\n功率：1.6KW/220V\n1、精工打造，采用蜂窝黑晶内胆，加厚防烫把手，可视化顶盖，人性化提手，可放饭勺、锅盖。\n2、采用加厚发热盘，受热更均匀导热更快，不加生快速快速煮出喷香的米饭，不仅省时，还省力。\n3、严苛选材，经久耐用，不脱落，升级版加厚，不变形不粘锅。\n\n",1,1,"个",null,0,"质鼎"]
[12,"厨杂用品","打包一整套","每套包含后厨加工用炒锅、炒勺、锅铲、保鲜盒、调料缸、洗菜篮子、蒸饭用不锈钢托盘等后厨厨杂用品。\n",1,1,"套",null,0,"汇星"]
[13,"包厢餐具","打包一整套","每套包含摆台餐具碗碟勺筷架水杯茶杯等20套，包含盘子砂锅等菜品容器器具。\n",1,1,"套",null,0,"道顿"]
["合计",{"$nulls":7},{"$f":"SUM(I3:I15)","v":0}]